fUSD/lending_fUSD_20240904
["ID","MTS","AMOUNT","RATE_DAILY","PERIOD"]
[337127457,1725448240591,-1252.99,0.00014369,2]
[337127458,1725448240601,-1252.99,0.00014369,2]
[337127459,1725448240610,-652.49,0.00014369,2]
[337127460,1725448240620,-652.49,0.00014369,2]
[337127461,1725448240630,-500.0,0.00014369,2]
[337127462,1725448240639,-500.0,0.00014369,2]
[337127463,1725448240649,-500.0,0.00014369,2]
[337127464,1725448240659,-500.0,0.00014369,2]
[337127465,1725448240669,-933.35,0.00014369,2]
[337127466,1725448240678,-933.35,0.00014369,2]
[337127467,1725448240688,-744.49,0.00014369,2]
[337127468,1725448240697,-744.49,0.00014369,2]
[337127469,1725448240707,-218.68994434,0.00014369,2]
[337127470,1725448240716,-500.0,0.00014369,2]
[337127471,1725448240725,-500.0,0.00014369,2]
[337127472,1725448240734,-1916.86,0.00014369,2]
[337127473,1725448240743,-1916.86,0.00014369,2]
[337127474,1725448240753,-500.0,0.00014369,2]
[337127475,1725448240762,-500.0,0.00014369,2]
[337127476,1725448240771,-500.0,0.00014369,2]
[337127477,1725448240781,-500.0,0.00014369,2]
[337127478,1725448240791,-1770.21,0.00014369,2]
[337127479,1725448240801,-1770.21,0.00014369,2]
[337127480,1725448240811,-500.0,0.00014369,2]
[337127481,1725448240821,-500.0,0.00014369,2]
[337127482,1725448240831,-500.0,0.00014369,2]
[337127483,1725448240841,-591.1,0.00014369,2]
[337127484,1725448240851,-500.0,0.00014369,2]
[337127485,1725448240862,-591.1,0.00014369,2]
[337127486,1725448240871,-967.58,0.00014369,2]
[337127487,1725448240881,-967.58,0.00014369,2]
[337127488,1725448240891,-500.0,0.00014369,2]
[337127489,1725448240900,-500.0,0.00014369,2]
[337127490,1725448240910,-1435.69,0.00014369,2]
[337127491,1725448240919,-1435.69,0.00014369,2]
[337127492,1725448240929,-684.61,0.00014369,2]
[337127493,1725448240938,-684.61,0.00014369,2]
[337127494,1725448240947,-595.56,0.00014369,2]
[337127495,1725448240956,-595.56,0.00014369,2]
[337127496,1725448240966,-647.61,0.00014369,2]
[337127497,1725448240978,-647.61,0.00014369,2]
[337127498,1725448240987,-500.0,0.00014369,2]
[337127499,1725448240997,-500.0,0.00014369,2]
[337127500,1725448241007,-500.0,0.00014369,2]
[337127501,1725448241017,-500.0,0.00014369,2]
[337127502,1725448241026,-500.0,0.00014369,2]
[337127503,1725448241035,-500.0,0.00014369,2]
[337127504,1725448241045,-500.0,0.00014369,2]
[337127505,1725448241057,-500.0,0.00014369,2]
[337127506,1725448241066,-838.38,0.00014369,2]
[337127507,1725448241075,-838.38,0.00014369,2]
[337127508,1725448241085,-575.81,0.00014369,2]
[337127509,1725448241095,-575.81,0.00014369,2]
[337127510,1725448241104,-1391.33,0.00014369,2]
[337127511,1725448241115,-1391.33,0.00014369,2]
[337127512,1725448241124,-686.07,0.00014369,2]
[337127513,1725448241133,-686.07,0.00014369,2]
[337127514,1725448241143,-912.68,0.00014369,2]
[337127515,1725448241152,-912.68,0.00014369,2]
[337127516,1725448241162,-569.41,0.00014369,2]
[337127517,1725448241172,-569.41,0.00014369,2]
[337127518,1725448241182,-2107.27,0.00014369,2]
[337127519,1725448241191,-2107.27,0.00014369,2]
[337127520,1725448241200,-1515.5,0.00014369,2]
[337127521,1725448241210,-1515.5,0.00014369,2]
[337127522,1725448241219,-2620.23,0.00014369,2]
[337127523,1725448241228,-2620.23,0.00014369,2]
[337127524,1725448241239,-1240.47,0.00014369,2]
[337127525,1725448241249,-1240.47,0.00014369,2]
[337127526,1725448241259,-500.0,0.00014369,2]
[337127527,1725448241270,-500.0,0.00014369,2]
[337127528,1725448241279,-849.25,0.00014369,2]
[337127529,1725448241287,-849.25,0.00014369,2]
[337127530,1725448241296,-573.05,0.00014369,2]
[337127531,1725448241306,-573.05,0.00014369,2]
[337127532,1725448241315,-1382.52,0.00014369,2]
[337127533,1725448241324,-1382.52,0.00014369,2]
[337127534,1725448241334,-997.23,0.00014369,2]
[337127535,1725448241344,-997.23,0.00014369,2]
[337127536,1725448241354,-500.0,0.00014369,2]
[337127537,1725448241363,-500.0,0.00014369,2]
[337127538,1725448241372,-861.36,0.00014369,2]
[337127539,1725448241382,-861.36,0.00014369,2]
[337127540,1725448241391,-871.28,0.00014369,2]
[337127541,1725448241401,-871.28,0.00014369,2]
[337127542,1725448241410,-810.79,0.00014369,2]
[337127543,1725448241420,-810.79,0.00014369,2]
[337127544,1725448241430,-987.36,0.00014369,2]
[337127545,1725448241440,-987.36,0.00014369,2]
[337127546,1725448241449,-616.9,0.00014369,2]
[337127547,1725448241459,-616.9,0.00014369,2]
[337127548,1725448241468,-630.83,0.00014369,2]
[337127549,1725448241478,-630.83,0.00014369,2]
[337127550,1725448241488,-899.26,0.00014369,2]
[337127551,1725448241497,-899.26,0.00014369,2]
[337127552,1725448241506,-782.71,0.00014369,2]
[337127553,1725448241517,-782.71,0.00014369,2]
[337127554,1725448241527,-500.0,0.00014369,2]
[337127555,1725448241536,-500.0,0.00014369,2]
[337127556,1725448241546,-500.0,0.00014369,2]
[337127557,1725448241555,-500.0,0.00014369,2]
[337127558,1725448241565,-1059.12,0.00014369,2]
[337127559,1725448241575,-1059.12,0.00014369,2]
[337127560,1725448241584,-269.67510865,0.00014369,2]
[337127561,1725448241594,-500.0,0.00014369,2]
[337127562,1725448241603,-539.69,0.00014369,2]
[337127563,1725448241613,-539.69,0.00014369,2]
[337127564,1725448241622,-500.0,0.00014369,2]
[337127565,1725448241632,-1240.53,0.00014369,2]
[337127566,1725448241641,-1240.53,0.00014369,2]
[337127567,1725448241650,-500.0,0.00014369,2]
[337127568,1725448241660,-500.0,0.00014369,2]
[337127569,1725448241669,-500.0,0.00014369,2]
[337127570,1725448241679,-500.0,0.00014369,2]
[337127571,1725448241689,-500.0,0.00014369,2]
[337127572,1725448241698,-500.0,0.00014369,2]
[337127573,1725448241708,-850.78,0.00014369,2]
[337127574,1725448241717,-500.0,0.00014369,2]
[337127575,1725448241726,-500.0,0.00014369,2]
[337127576,1725448241736,-611.49,0.00014369,2]
[337127577,1725448241746,-500.0,0.00014369,2]
[337127578,1725448241755,-1163.73,0.00014369,2]
[337127579,1725448241764,-500.0,0.00014369,2]
[337127580,1725448241774,-1101.55,0.00014369,2]
[337127581,1725448241783,-500.0,0.00014369,2]
[337127582,1725448241792,-957.91,0.00014369,2]
[337127583,1725448241802,-1400.93,0.00014369,2]
[337127584,1725448241811,-500.0,0.00014369,2]
[337127585,1725448241820,-500.0,0.00014369,2]
[337127586,1725448241830,-602.85,0.00014369,2]
[337127587,1725448241839,-500.0,0.00014369,2]
[337127588,1725448241849,-500.0,0.00014369,2]
[337127589,1725448241859,-680.99,0.00014369,2]
[337127590,1725448241868,-737.84,0.00014369,2]
[337127591,1725448241877,-555.09,0.00014369,2]
[337127592,1725448241887,-500.0,0.00014369,2]
[337127593,1725448241896,-531.28,0.00014369,2]
[337127594,1725448241906,-500.0,0.00014369,2]
[337127595,1725448241915,-500.0,0.00014369,2]
[337127596,1725448241932,-500.0,0.00014369,2]
[337127597,1725448241944,-500.0,0.00014369,2]
[337127598,1725448241953,-500.0,0.00014369,2]
[337127599,1725448241963,-591.43441682,0.00014369,2]
[337127600,1725448241975,-423.9132702,0.0001437,2]
[337127601,1725448241986,-1208.79,0.0001437,2]
[337127602,1725448241995,-1208.79,0.0001437,2]
[337127603,1725448242004,-500.0,0.0001437,2]
[337127604,1725448242014,-500.0,0.0001437,2]
[337127605,1725448242024,-500.0,0.0001437,2]
[337127606,1725448242033,-513.52,0.0001437,2]
[337127607,1725448242042,-513.52,0.0001437,2]
[337127608,1725448242053,-771.47,0.0001437,2]
[337127609,1725448242062,-500.0,0.0001437,2]
[337127610,1725448242071,-500.0,0.0001437,2]
[337127611,1725448242080,-500.0,0.0001437,2]
[337127612,1725448242090,-500.0,0.0001437,2]
[337127613,1725448242099,-500.0,0.0001437,2]
[337127614,1725448242108,-500.0,0.0001437,2]
[337127615,1725448242117,-1123.87,0.0001437,2]
[337127616,1725448242127,-500.0,0.0001437,2]
[337127617,1725448242136,-500.0,0.0001437,2]
[337127618,1725448242146,-500.0,0.0001437,2]
[337127619,1725448242155,-1227.15,0.0001437,2]
[337127620,1725448242164,-539.51,0.0001437,2]
[337127621,1725448242173,-539.51,0.0001437,2]
[337127622,1725448242183,-975.62,0.0001437,2]
[337127623,1725448242192,-975.62,0.0001437,2]
[337127624,1725448242390,-500.0,0.0001437,2]
[337127625,1725448242400,-572.05,0.0001437,2]
[337127626,1725448242410,-167.27295397,0.0001437,2]
[337127627,1725448242423,-500.0,0.0001437,2]
[337127628,1725448242435,-500.0,0.0001437,2]
[337127629,1725448242450,-641.61,0.0001437,2]
[337127630,1725448242461,-641.61,0.0001437,2]
[337127631,1725448242470,-554.38,0.0001437,2]
[337127632,1725448242479,-552.45,0.0001437,2]
[337127633,1725448242489,-500.0,0.0001437,2]
[337127634,1725448242499,-500.0,0.0001437,2]
[337127635,1725448242508,-500.0,0.0001437,2]
[337127636,1725448242518,-500.0,0.0001437,2]
[337127637,1725448242527,-500.0,0.0001437,2]
[337127638,1725448242537,-653.03,0.0001437,2]
[337127639,1725448242547,-653.03,0.0001437,2]
[337127640,1725448242556,-1529.17,0.0001437,2]
[337127641,1725448242565,-657.0,0.0001437,2]
[337127642,1725448242574,-657.0,0.0001437,2]
[337127643,1725448242584,-1188.55,0.0001437,2]
[337127644,1725448242593,-500.0,0.0001437,2]
[337127645,1725448242602,-500.0,0.0001437,2]
[337127646,1725448242611,-646.17,0.0001437,2]
[337127647,1725448242621,-646.17,0.0001437,2]
[337127648,1725448242631,-1471.13,0.0001437,2]
[337127649,1725448242641,-1397.49,0.0001437,2]
[337127650,1725448242650,-769.15,0.0001437,2]
[337127651,1725448242660,-769.15,0.0001437,2]
[337127652,1725448242670,-500.0,0.0001437,2]
[337127653,1725448242687,-911.38,0.0001437,2]
[337127654,1725448242697,-1901.84,0.0001437,2]
[337127655,1725448242706,-500.0,0.0001437,2]
[337127656,1725448242715,-634.36,0.0001437,2]
[337127657,1725448242725,-1038.33,0.0001437,2]
[337127658,1725448242735,-600.5,0.0001437,2]
[337127659,1725448242744,-600.5,0.0001437,2]
[337127660,1725448242754,-2122.64,0.0001437,2]
[337127661,1725448242764,-1195.18,0.0001437,2]
[337127662,1725448242773,-878.21,0.0001437,2]
[337127663,1725448242783,-878.21,0.0001437,2]
[337127664,1725448242793,-1171.03,0.0001437,2]
[337127665,1725448242802,-500.0,0.0001437,2]
[337127666,1725448242812,-815.19,0.0001437,2]
[337127667,1725448242821,-500.0,0.0001437,2]
[337127668,1725448242831,-976.03,0.0001437,2]
[337127670,1725448242841,-500.0,0.0001437,2]
[337127673,1725448242850,-500.0,0.0001437,2]
[337127676,1725448242860,-500.0,0.0001437,2]
[337127679,1725448242869,-1026.29,0.0001437,2]
[337127682,1725448242878,-1252.99,0.0001437,2]
[337127684,1725448242887,-652.49,0.0001437,2]
[337127686,1725448242896,-500.0,0.0001437,2]
[337127688,1725448242906,-500.0,0.0001437,2]
[337127691,1725448242915,-933.35,0.0001437,2]
[337127693,1725448242928,-744.49,0.0001437,2]
[337127695,1725448242938,-500.0,0.0001437,2]
[337127697,1725448242948,-1916.86,0.0001437,2]
[337127700,1725448242958,-500.0,0.0001437,2]
[337127701,1725448242970,-500.0,0.0001437,2]
[337127704,1725448242985,-1770.21,0.0001437,2]
[337127705,1725448242995,-500.0,0.0001437,2]
[337127707,1725448243004,-500.0,0.0001437,2]
[337127709,1725448243014,-591.1,0.0001437,2]
[337127711,1725448243024,-967.58,0.0001437,2]
[337127713,1725448243033,-500.0,0.0001437,2]
[337127715,1725448243043,-1435.69,0.0001437,2]
[337127717,1725448243053,-684.61,0.0001437,2]
[337127719,1725448243063,-595.56,0.0001437,2]
[337127721,1725448243073,-647.61,0.0001437,2]
[337127723,1725448243082,-500.0,0.0001437,2]
[337127725,1725448243092,-500.0,0.0001437,2]
[337127726,1725448243101,-500.0,0.0001437,2]
[337127728,1725448243111,-500.0,0.0001437,2]
[337127730,1725448243120,-838.38,0.0001437,2]
[337127732,1725448243130,-575.81,0.0001437,2]
[337127734,1725448243140,-1391.33,0.0001437,2]
[337127735,1725448243150,-686.07,0.0001437,2]
[337127736,1725448243160,-912.68,0.0001437,2]
[337127737,1725448243169,-569.41,0.0001437,2]
[337127738,1725448243181,-2107.27,0.0001437,2]
[337127739,1725448243191,-1515.5,0.0001437,2]
[337127740,1725448243200,-2620.23,0.0001437,2]
[337127741,1725448243209,-1240.47,0.0001437,2]
[337127742,1725448243218,-500.0,0.0001437,2]
[337127743,1725448243228,-849.25,0.0001437,2]
[337127744,1725448243237,-200.0,0.0001437,2]
[337127745,1725448243247,-573.05,0.0001437,2]
[337127746,1725448243256,-1382.52,0.0001437,2]
[337127747,1725448243266,-997.23,0.0001437,2]
[337127748,1725448243275,-500.0,0.0001437,2]
[337127749,1725448243285,-861.36,0.0001437,2]
[337127750,1725448243295,-871.28,0.0001437,2]
[337127751,1725448243305,-810.79,0.0001437,2]
[337127752,1725448243314,-987.36,0.0001437,2]
[337127753,1725448243323,-616.9,0.0001437,2]
[337127754,1725448243333,-630.83,0.0001437,2]
[337127755,1725448243342,-899.26,0.0001437,2]
[337127756,1725448243352,-782.71,0.0001437,2]
[337127757,1725448243361,-500.0,0.0001437,2]
[337127758,1725448243371,-500.0,0.0001437,2]
[337127759,1725448243380,-1059.12,0.0001437,2]
[337127760,1725448243390,-539.69,0.0001437,2]
[337127761,1725448243399,-1240.53,0.0001437,2]
[337127762,1725448243409,-500.0,0.0001437,2]
[337127763,1725448243419,-500.0,0.0001437,2]
[337127765,1725448243430,-150.0,0.0001437,2]
[337127766,1725448243439,-150.309,0.0001437,2]
[337127767,1725448243449,-150.0,0.0001437,2]
[337127768,1725448243458,-252.866,0.0001437,2]
[337127769,1725448243467,-266.33,0.00014372,2]
[337127770,1725448243478,-853.54,0.00014372,2]
[337127771,1725448243487,-688.59,0.00014372,2]
[337127772,1725448243497,-500.0,0.00014373,2]
[337127773,1725448243506,-160.19629951,0.00014373,2]
[337127774,1725448243516,-159.29250732,0.00014373,2]
[337127776,1725448243526,-157.1854148,0.00014373,2]
[337127777,1725448243535,-416.8955371,0.00014373,2]
[337127778,1725448243545,-723.33416745,0.00014376,2]
[337127779,1725448243554,-538.96999277,0.00014377,2]
[337127780,1725448243564,-460.72,0.00014377,2]
[337127781,1725448243574,-500.0,0.00014377,2]
[337127782,1725448243584,-172.05,0.00014377,2]
[337127783,1725448243593,-500.0,0.00014377,2]
[337127784,1725448243603,-500.0,0.00014377,2]
[337127785,1725448243612,-1032.23,0.00014377,2]
[337127786,1725448243621,-249.76,0.00014377,2]
[337127787,1725448243631,-1090.29,0.00014377,2]
[337127788,1725448243641,-500.0,0.00014377,2]
[337127789,1725448243650,-237.47,0.00014377,2]
[337127790,1725448243659,-500.0,0.00014377,2]
[337127791,1725448243669,-500.0,0.00014377,2]
[337127792,1725448243680,-500.0,0.00014377,2]
[337127793,1725448243689,-500.0,0.00014377,2]
[337127794,1725448243699,-500.0,0.00014377,2]
[337127795,1725448243708,-296.93417963,0.00014377,2]
[337127796,1725448243717,-500.0,0.00014377,2]
[337127797,1725448243727,-500.0,0.00014377,2]
[337127798,1725448243736,-649.45,0.00014377,2]
[337127799,1725448243745,-316.17,0.00014377,2]
[337127800,1725448243755,-500.0,0.00014377,2]
[337127801,1725448243763,-400.3764391,0.00014377,2]
[337127802,1725448243773,-365.20305293,0.00014377,2]
[337127803,1725448243782,-500.0,0.00014377,2]
[337127804,1725448243791,-500.0,0.00014377,2]
[337127805,1725448243800,-500.0,0.00014377,2]
[337127806,1725448243810,-500.0,0.00014377,2]
[337127807,1725448243819,-660.36,0.00014377,2]
[337127808,1725448243829,-500.0,0.00014377,2]
[337127809,1725448243839,-500.0,0.00014377,2]
[337127810,1725448243849,-500.0,0.00014377,2]
[337127811,1725448243859,-500.0,0.00014377,2]
[337127812,1725448243868,-500.0,0.00014377,2]
[337127813,1725448243877,-500.0,0.00014377,2]
[337127814,1725448243889,-500.0,0.00014377,2]
[337127815,1725448243899,-786.19,0.00014377,2]
[337127816,1725448243909,-1202.42,0.00014377,2]
[337127817,1725448243919,-500.0,0.00014377,2]
[337127818,1725448243930,-500.0,0.00014377,2]
[337127819,1725448243940,-500.0,0.00014377,2]
[337127820,1725448243951,-500.0,0.00014377,2]
[337127821,1725448243962,-500.0,0.00014377,2]
[337127822,1725448243978,-659.28,0.00014377,2]
[337127823,1725448243992,-500.0,0.00014377,2]
[337127824,1725448244002,-500.0,0.00014377,2]
[337127825,1725448244011,-650.85,0.00014377,2]
[337127826,1725448244021,-862.21,0.00014377,2]
[337127827,1725448244030,-524.35,0.00014377,2]
[337127828,1725448244039,-500.0,0.00014377,2]
[337127829,1725448244048,-540.61,0.00014377,2]
[337127830,1725448244057,-500.0,0.00014377,2]
[337127831,1725448244066,-500.0,0.00014377,2]
[337127832,1725448244076,-1723.04,0.00014377,2]
[337127833,1725448244085,-500.0,0.00014377,2]
[337127834,1725448244094,-500.0,0.00014377,2]
[337127835,1725448244103,-500.0,0.00014377,2]
[337127836,1725448244113,-500.0,0.00014377,2]
[337127837,1725448244122,-500.0,0.00014377,2]
[337127838,1725448244130,-210.27243633,0.00014377,2]
[337127839,1725448244140,-500.0,0.00014377,2]
[337127840,1725448244149,-1135.56,0.00014377,2]
[337127841,1725448244158,-1532.66,0.00014377,2]
[337127842,1725448244167,-1762.58,0.00014377,2]
[337127843,1725448244176,-500.0,0.00014377,2]
[337127844,1725448244185,-500.0,0.00014377,2]
[337127845,1725448244195,-892.7,0.00014377,2]
[337127846,1725448244204,-500.0,0.00014377,2]
[337127847,1725448244213,-1403.23,0.00014377,2]
[337127848,1725448244222,-1519.56,0.00014377,2]
[337127849,1725448244232,-500.0,0.00014377,2]
[337127850,1725448244242,-606.34,0.00014377,2]
[337127851,1725448244251,-817.36,0.00014377,2]
[337127852,1725448244260,-500.0,0.00014377,2]
[337127853,1725448244269,-500.0,0.00014377,2]
[337127854,1725448244279,-1019.91,0.00014377,2]
[337127855,1725448244288,-500.0,0.00014377,2]
[337127856,1725448244298,-500.0,0.00014377,2]
[337127857,1725448244308,-500.0,0.00014377,2]
[337127858,1725448244318,-966.96,0.00014377,2]
[337127859,1725448244328,-500.0,0.00014377,2]
[337127860,1725448244337,-1262.13,0.00014377,2]
[337127861,1725448244347,-500.0,0.00014377,2]
[337127862,1725448244356,-1042.67,0.00014377,2]
[337127863,1725448244366,-500.0,0.00014377,2]
[337127864,1725448244375,-500.0,0.00014377,2]
[337127865,1725448244385,-500.0,0.00014377,2]
[337127866,1725448244394,-500.0,0.00014377,2]
[337127867,1725448244403,-500.0,0.00014377,2]
[337127868,1725448244412,-500.0,0.00014377,2]
[337127869,1725448244423,-500.0,0.00014377,2]
[337127870,1725448244432,-500.0,0.00014377,2]
[337127871,1725448244441,-500.0,0.00014377,2]
[337127872,1725448244450,-500.0,0.00014377,2]
[337127873,1725448244460,-500.0,0.00014377,2]
[337127874,1725448244469,-500.0,0.00014377,2]
[337127875,1725448244479,-500.0,0.00014377,2]
[337127876,1725448244487,-500.0,0.00014377,2]
[337127877,1725448244497,-500.0,0.00014377,2]
[337127878,1725448244506,-500.0,0.00014377,2]
[337127879,1725448244516,-500.0,0.00014377,2]
[337127880,1725448244525,-500.0,0.00014377,2]
[337127881,1725448244535,-500.0,0.00014377,2]
[337127882,1725448244545,-500.0,0.00014377,2]
[337127883,1725448244555,-500.0,0.00014377,2]
[337127884,1725448244564,-500.0,0.00014377,2]
[337127885,1725448244573,-500.0,0.00014377,2]
[337127886,1725448244582,-500.0,0.00014377,2]
[337127887,1725448244592,-500.0,0.00014377,2]
[337127888,1725448244601,-231.54845723,0.00014377,2]
[337127889,1725448244610,-500.0,0.00014377,2]
[337127890,1725448244620,-500.0,0.00014377,2]
[337127891,1725448244631,-500.0,0.00014377,2]
[337127892,1725448244641,-500.0,0.00014377,2]
[337127893,1725448244651,-500.0,0.00014377,2]
[337127894,1725448244660,-728.39598109,0.00014377,2]
[337127895,1725448244670,-500.0,0.00014378,2]
[337127896,1725448244680,-581.89,0.00014378,2]
[337127897,1725448244689,-500.0,0.00014378,2]
[337127898,1725448244698,-500.0,0.00014378,2]
[337127899,1725448244707,-4784.68,0.00014378,2]
[337127900,1725448244716,-500.0,0.00014378,2]
[337127901,1725448244726,-500.0,0.00014378,2]
[337127902,1725448244735,-500.0,0.00014378,2]
[337127903,1725448244744,-500.0,0.00014378,2]
[337127904,1725448244753,-500.0,0.00014378,2]
[337127905,1725448244762,-153.29468776,0.00014378,2]
[337127906,1725448244771,-500.0,0.00014378,2]
[337127907,1725448244780,-500.0,0.00014378,2]
[337127908,1725448244790,-500.0,0.00014378,2]
[337127909,1725448244799,-500.0,0.00014378,2]
[337127910,1725448244808,-500.0,0.00014378,2]
[337127911,1725448244817,-500.0,0.00014378,2]
[337127912,1725448244826,-500.0,0.00014378,2]
[337127913,1725448244836,-500.0,0.00014378,2]
[337127914,1725448244845,-500.0,0.00014378,2]
[337127915,1725448244855,-500.0,0.00014378,2]
[337127916,1725448244864,-610.91,0.00014378,2]
[337127917,1725448244877,-500.0,0.00014378,2]
[337127918,1725448244886,-603.44,0.00014378,2]
[337127919,1725448244895,-712.46,0.00014378,2]
[337127920,1725448244905,-1009.68,0.00014378,2]
[337127921,1725448244915,-1063.22,0.00014378,2]
[337127922,1725448244926,-1426.19,0.00014378,2]
[337127923,1725448244936,-1054.11,0.00014378,2]
[337127924,1725448244945,-918.12,0.00014378,2]
[337127925,1725448244956,-1075.31,0.00014378,2]
[337127926,1725448244966,-500.0,0.00014378,2]
[337127927,1725448244979,-500.0,0.00014378,2]
[337127928,1725448244988,-212.08644444,0.00014378,2]
[337127929,1725448244998,-500.0,0.00014378,2]
[337127930,1725448245007,-500.0,0.00014378,2]
[337127931,1725448245019,-885.47,0.00014378,2]
[337127932,1725448245028,-500.0,0.00014378,2]
[337127933,1725448245037,-500.0,0.00014378,2]
[337127934,1725448245047,-500.0,0.00014378,2]
[337127935,1725448245058,-500.0,0.00014378,2]
[337127936,1725448245068,-503.81,0.00014378,2]
[337127937,1725448245077,-500.0,0.00014378,2]
[337127938,1725448245086,-516.11,0.00014378,2]
[337127939,1725448245096,-500.0,0.00014378,2]
[337127940,1725448245107,-500.0,0.00014378,2]
[337127941,1725448245121,-500.0,0.00014378,2]
[337127942,1725448245134,-500.0,0.00014378,2]
[337127943,1725448245144,-845.51,0.00014378,2]
[337127944,1725448245154,-1357.91,0.00014378,2]
[337127945,1725448245164,-972.7,0.00014378,2]
[337127946,1725448245173,-888.72,0.00014378,2]
[337127947,1725448245183,-828.69,0.00014378,2]
[337127948,1725448245192,-500.0,0.00014378,2]
[337127949,1725448245202,-500.0,0.00014378,2]
[337127950,1725448245211,-500.0,0.00014378,2]
[337127951,1725448245221,-1389.3,0.00014378,2]
[337127952,1725448245231,-500.0,0.00014378,2]
[337127953,1725448245241,-500.0,0.00014378,2]
[337127954,1725448245251,-500.0,0.00014378,2]
[337127955,1725448245260,-500.0,0.00014378,2]
[337127956,1725448245270,-500.0,0.00014378,2]
[337127957,1725448245279,-500.0,0.00014378,2]
[337127958,1725448245288,-1190.22,0.00014378,2]
[337127959,1725448245298,-500.0,0.00014378,2]
[337127960,1725448245308,-500.0,0.00014378,2]
[337127961,1725448245318,-751.27,0.00014378,2]
[337127962,1725448245327,-500.0,0.00014378,2]
[337127963,1725448245337,-500.0,0.00014378,2]
[337127964,1725448245346,-500.0,0.00014378,2]
[337127965,1725448245356,-500.0,0.00014378,2]
[337127966,1725448245366,-500.0,0.00014378,2]
[337127967,1725448245376,-500.0,0.00014378,2]
[337127968,1725448245385,-500.0,0.00014378,2]
[337127969,1725448245395,-500.0,0.00014378,2]
[337127970,1725448245405,-500.0,0.00014378,2]
[337127971,1725448245609,-500.0,0.00014378,2]
[337127972,1725448245619,-500.0,0.00014378,2]
[337127973,1725448245629,-616.06,0.00014378,2]
[337127974,1725448245639,-500.0,0.00014378,2]
[337127975,1725448245649,-366.01809979,0.00014378,2]
[337127976,1725448245658,-591.9,0.00014378,2]
[337127977,1725448245668,-500.0,0.00014378,2]
[337127978,1725448245679,-1032.23,0.00014378,2]
[337127979,1725448245689,-1090.29,0.00014378,2]
[337127980,1725448245698,-500.0,0.00014378,2]
[337127981,1725448245707,-500.0,0.00014378,2]
[337127982,1725448245716,-1611.6,0.00014378,2]
[337127983,1725448245725,-674.07,0.00014378,2]
[337127984,1725448245734,-500.0,0.00014378,2]
[337127985,1725448245743,-500.0,0.00014378,2]
[337127986,1725448245752,-270.05502635,0.00014378,2]
[337127987,1725448245761,-503.81500022,0.00014378,2]
[337127988,1725448245771,-588.94016223,0.00014378,2]
[337127989,1725448245780,-500.0,0.00014378,2]
[337127990,1725448245790,-500.0,0.00014378,2]
[337127991,1725448245799,-500.0,0.00014378,2]
[337127992,1725448245809,-500.0,0.00014378,2]
[337127993,1725448245819,-640.53,0.00014378,2]